[Event "Titled Tuesday Blitz July 11 Late 2023"]
[White "Dardha, Daniel"]
[Black "Kanyamarala, Tarun"]
[WhiteFideId "240990"]
[BlackFideId "45004714"]
[WhiteElo "2866"]
[BlackElo "2531"]
[Result "1-0"]
[Round "2"]
[TimeControl "180+2"]
[Date "2023.07.11"]
[WhiteClock "0:01:21"]
[BlackClock "0:01:00"]
[Board "36"]

1. d4 {[%clk 0:02:53]}  Nf6 {[%clk 0:02:59]} 2. Bg5 {[%clk 0:02:52]}  c5 {[%clk 0:02:58]} 3. dxc5 {[%clk 0:02:52]}  e6 {[%clk 0:02:53]} 4. e4 {[%clk 0:02:51]}  Bxc5 {[%clk 0:02:51]} 5. Nc3 {[%clk 0:02:50]}  Nc6 {[%clk 0:02:46]} 6. Qd2 {[%clk 0:02:48]}  h6 {[%clk 0:02:45]} 7. Bxf6 {[%clk 0:02:40]}  Qxf6 {[%clk 0:02:44]} 8. f4 {[%clk 0:02:40]}  O-O {[%clk 0:02:41]} 9. e5 {[%clk 0:02:34]}  Qh4+ {[%clk 0:02:40]} 10. g3 {[%clk 0:02:33]}  Qe7 {[%clk 0:02:39]} 11. O-O-O {[%clk 0:02:33]}  f6 {[%clk 0:02:37]} 12. exf6 {[%clk 0:02:30]}  Qxf6 {[%clk 0:02:36]} 13. Ne4 {[%clk 0:02:29]}  Qe7 {[%clk 0:02:33]} 14. Nxc5 {[%clk 0:02:26]}  Qxc5 {[%clk 0:02:33]} 15. Nf3 {[%clk 0:02:27]}  d5 {[%clk 0:02:32]} 16. Bd3 {[%clk 0:02:26]}  Bd7 {[%clk 0:02:32]} 17. Rhe1 {[%clk 0:02:26]}  Rac8 {[%clk 0:02:12]} 18. Kb1 {[%clk 0:02:24]}  Rf6 {[%clk 0:02:00]} 19. Ne5 {[%clk 0:02:23]}  Nxe5 {[%clk 0:02:00]} 20. Rxe5 {[%clk 0:02:24]}  Be8 {[%clk 0:01:54]} 21. Rde1 {[%clk 0:02:23]}  Bf7 {[%clk 0:01:54]} 22. g4 {[%clk 0:02:21]}  Qb6 {[%clk 0:01:48]} 23. g5 {[%clk 0:01:44]}  hxg5 {[%clk 0:01:48]} 24. Rxg5 {[%clk 0:01:45]}  g6 {[%clk 0:01:33]} 25. Reg1 {[%clk 0:01:41]}  Kg7 {[%clk 0:01:31]} 26. Qg2 {[%clk 0:01:28]}  Rg8 {[%clk 0:01:00]} 27. Bxg6 {[%clk 0:01:21]} 1-0


[Site "https://www.chess.com"]

[Event "Titled Tuesday Blitz July 11 Late 2023"]
[White "Moral Garcia, Serafin"]
[Black "Ter-Sahakyan, Samvel"]
[WhiteFideId "2201925"]
[BlackFideId "13302531"]
[WhiteElo "2531"]
[BlackElo "2851"]
[Result "1-0"]
[Round "2"]
[TimeControl "180+2"]
[Date "2023.07.11"]
[WhiteClock "0:00:19"]
[BlackClock "0:00:00"]
[Board "37"]

1. e4 {[%clk 0:03:00]}  c6 {[%clk 0:03:00]} 2. d4 {[%clk 0:03:00]}  d5 {[%clk 0:03:00]} 3. exd5 {[%clk 0:03:01]}  cxd5 {[%clk 0:03:01]} 4. c4 {[%clk 0:03:01]}  Nf6 {[%clk 0:03:00]} 5. Nc3 {[%clk 0:02:58]}  Nc6 {[%clk 0:03:00]} 6. Bg5 {[%clk 0:02:56]}  dxc4 {[%clk 0:02:48]} 7. Bxc4 {[%clk 0:02:53]}  h6 {[%clk 0:02:47]} 8. Bxf6 {[%clk 0:02:48]}  exf6 {[%clk 0:02:47]} 9. Nf3 {[%clk 0:02:35]}  Bd6 {[%clk 0:02:47]} 10. O-O {[%clk 0:02:33]}  O-O {[%clk 0:02:47]} 11. h3 {[%clk 0:02:30]}  Bf5 {[%clk 0:02:38]} 12. Re1 {[%clk 0:02:29]}  Rc8 {[%clk 0:02:35]} 13. Bd3 {[%clk 0:02:28]}  Bd7 {[%clk 0:02:29]} 14. a3 {[%clk 0:02:25]}  a6 {[%clk 0:02:28]} 15. Bc2 {[%clk 0:02:21]}  Ne7 {[%clk 0:02:22]} 16. Ne4 {[%clk 0:02:17]}  Bb8 {[%clk 0:02:20]} 17. Nc5 {[%clk 0:02:14]}  Bc6 {[%clk 0:02:14]} 18. Be4 {[%clk 0:02:13]}  Nd5 {[%clk 0:02:04]} 19. Rc1 {[%clk 0:02:05]}  Qd6 {[%clk 0:02:03]} 20. g3 {[%clk 0:02:00]}  Rfe8 {[%clk 0:02:01]} 21. Qb3 {[%clk 0:01:55]}  Re7 {[%clk 0:01:39]} 22. Nd2 {[%clk 0:01:25]}  Rce8 {[%clk 0:01:32]} 23. Red1 {[%clk 0:01:25]}  h5 {[%clk 0:01:23]} 24. h4 {[%clk 0:01:23]}  g6 {[%clk 0:01:19]} 25. Bg2 {[%clk 0:01:17]}  Kg7 {[%clk 0:00:55]} 26. a4 {[%clk 0:01:10]}  Ba7 {[%clk 0:00:26]} 27. Nc4 {[%clk 0:01:06]}  Qd8 {[%clk 0:00:26]} 28. Qa3 {[%clk 0:00:59]}  Bb8 {[%clk 0:00:18]} 29. b4 {[%clk 0:00:56]}  Bc7 {[%clk 0:00:17]} 30. b5 {[%clk 0:00:41]}  axb5 {[%clk 0:00:17]} 31. axb5 {[%clk 0:00:42]}  Bxb5 {[%clk 0:00:17]} 32. Nxb7 {[%clk 0:00:42]}  Qd7 {[%clk 0:00:15]} 33. Nbd6 {[%clk 0:00:41]}  Bxd6 {[%clk 0:00:05]} 34. Nxd6 {[%clk 0:00:38]}  Bc6 {[%clk 0:00:03]} 35. Nxe8+ {[%clk 0:00:36]}  Rxe8 {[%clk 0:00:04]} 36. Rc5 {[%clk 0:00:31]}  Ba8 {[%clk 0:00:04]} 37. Qa5 {[%clk 0:00:26]}  Rd8 {[%clk 0:00:00]} 38. Rdc1 {[%clk 0:00:19]} 1-0


[Site "https://www.chess.com"]

[Event "Titled Tuesday Blitz July 11 Late 2023"]
[White "brm72"]
[Black "Moroni, Luca Jr"]
[BlackFideId "865834"]
[WhiteElo "2530"]
[BlackElo "2842"]
[Result "0-1"]
[Round "2"]
[TimeControl "180+2"]
[Date "2023.07.11"]
[WhiteClock "0:00:00"]
[BlackClock "0:00:22"]
[Board "38"]

1. e4 {[%clk 0:03:00]}  g6 {[%clk 0:03:00]} 2. d4 {[%clk 0:02:58]}  Bg7 {[%clk 0:03:01]} 3. Nc3 {[%clk 0:02:58]}  d6 {[%clk 0:03:01]} 4. Be3 {[%clk 0:02:58]}  Nf6 {[%clk 0:03:01]} 5. Qd2 {[%clk 0:02:54]}  O-O {[%clk 0:03:01]} 6. Bh6 {[%clk 0:02:39]}  c5 {[%clk 0:02:59]} 7. Nf3 {[%clk 0:02:38]}  cxd4 {[%clk 0:02:58]} 8. Nxd4 {[%clk 0:02:39]}  Nc6 {[%clk 0:02:58]} 9. Bxg7 {[%clk 0:02:36]}  Kxg7 {[%clk 0:02:57]} 10. O-O-O {[%clk 0:02:34]}  Nxd4 {[%clk 0:02:54]} 11. Qxd4 {[%clk 0:02:35]}  Qa5 {[%clk 0:02:54]} 12. f3 {[%clk 0:02:26]}  b5 {[%clk 0:02:49]} 13. Bxb5 {[%clk 0:02:18]}  Rb8 {[%clk 0:02:48]} 14. Bc4 {[%clk 0:02:15]}  Be6 {[%clk 0:02:46]} 15. Bb3 {[%clk 0:01:46]}  Rfc8 {[%clk 0:02:43]} 16. Kb1 {[%clk 0:01:45]}  Rb4 {[%clk 0:02:34]} 17. Qe3 {[%clk 0:01:41]}  Qc7 {[%clk 0:02:32]} 18. Rd4 {[%clk 0:01:40]}  a5 {[%clk 0:02:29]} 19. g4 {[%clk 0:01:37]}  Qa7 {[%clk 0:02:11]} 20. Rd3 {[%clk 0:01:31]}  Qa6 {[%clk 0:02:06]} 21. e5 {[%clk 0:01:15]}  dxe5 {[%clk 0:02:00]} 22. Qxe5 {[%clk 0:01:16]}  Kg8 {[%clk 0:01:02]} 23. h4 {[%clk 0:00:50]}  Nd7 {[%clk 0:00:55]} 24. Rxd7 {[%clk 0:00:34]}  Bxd7 {[%clk 0:00:56]} 25. Qxe7 {[%clk 0:00:32]}  Be6 {[%clk 0:00:52]} 26. h5 {[%clk 0:00:16]}  Bxb3 {[%clk 0:00:49]} 27. axb3 {[%clk 0:00:14]}  Qe6 {[%clk 0:00:44]} 28. Qg5 {[%clk 0:00:13]}  a4 {[%clk 0:00:30]} 29. bxa4 {[%clk 0:00:13]}  Rcb8 {[%clk 0:00:29]} 30. Nb5 {[%clk 0:00:10]}  Rxa4 {[%clk 0:00:27]} 31. b3 {[%clk 0:00:00]}  Rb4 {[%clk 0:00:22]} 0-1


[Site "https://www.chess.com"]

[Event "Titled Tuesday Blitz July 11 Late 2023"]
[White "D`Arruda, Ricardo D."]
[Black "Elsa167"]
[WhiteFideId "100692"]
[WhiteElo "2530"]
[BlackElo "2828"]
[Result "0-1"]
[Round "2"]
[TimeControl "180+2"]
[Date "2023.07.11"]
[WhiteClock "0:02:03"]
[BlackClock "0:01:10"]
[Board "39"]

1. d4 {[%clk 0:03:00]}  Nf6 {[%clk 0:02:59]} 2. Nf3 {[%clk 0:03:00]}  d5 {[%clk 0:02:59]} 3. c4 {[%clk 0:02:59]}  e6 {[%clk 0:03:00]} 4. e3 {[%clk 0:02:59]}  Bd6 {[%clk 0:02:59]} 5. Nc3 {[%clk 0:02:59]}  O-O {[%clk 0:02:59]} 6. Bd3 {[%clk 0:02:59]}  Nc6 {[%clk 0:02:53]} 7. O-O {[%clk 0:02:57]}  dxc4 {[%clk 0:02:48]} 8. Bxc4 {[%clk 0:02:57]}  e5 {[%clk 0:02:49]} 9. d5 {[%clk 0:02:49]}  Ne7 {[%clk 0:02:46]} 10. e4 {[%clk 0:02:48]}  Ng6 {[%clk 0:02:46]} 11. g3 {[%clk 0:02:44]}  Bg4 {[%clk 0:02:37]} 12. Re1 {[%clk 0:02:43]}  a6 {[%clk 0:02:32]} 13. Be2 {[%clk 0:02:43]}  h6 {[%clk 0:02:24]} 14. a4 {[%clk 0:02:41]}  Qd7 {[%clk 0:02:23]} 15. Nd2 {[%clk 0:02:38]}  Bh3 {[%clk 0:02:18]} 16. Bf1 {[%clk 0:02:36]}  Nh7 {[%clk 0:02:13]} 17. Bxh3 {[%clk 0:02:33]}  Qxh3 {[%clk 0:02:13]} 18. Qf3 {[%clk 0:02:32]}  Bc5 {[%clk 0:01:29]} 19. Nd1 {[%clk 0:02:22]}  f5 {[%clk 0:01:20]} 20. exf5 {[%clk 0:02:14]}  Rxf5 {[%clk 0:01:21]} 21. Qg2 {[%clk 0:02:14]}  Ng5 {[%clk 0:01:14]} 22. Ne4 {[%clk 0:02:03]}  Nf3+ {[%clk 0:01:10]} 0-1


[Site "https://www.chess.com"]

[Event "Titled Tuesday Blitz July 11 Late 2023"]
[White "Warmerdam, Max"]
[Black "Keleberda, Tymur"]
[WhiteFideId "1048104"]
[BlackFideId "14174294"]
[WhiteElo "2821"]
[BlackElo "2529"]
[Result "1/2-1/2"]
[Round "2"]
[TimeControl "180+2"]
[Date "2023.07.11"]
[WhiteClock "0:00:13"]
[BlackClock "0:00:07"]
[Board "40"]

1. Nf3 {[%clk 0:02:58]}  Nf6 {[%clk 0:02:59]} 2. g3 {[%clk 0:02:56]}  e6 {[%clk 0:02:59]} 3. Bg2 {[%clk 0:02:57]}  d5 {[%clk 0:02:59]} 4. O-O {[%clk 0:02:54]}  Be7 {[%clk 0:02:59]} 5. d4 {[%clk 0:02:55]}  O-O {[%clk 0:02:57]} 6. Ne5 {[%clk 0:02:56]}  b5 {[%clk 0:02:44]} 7. a4 {[%clk 0:02:54]}  b4 {[%clk 0:02:38]} 8. c4 {[%clk 0:02:54]}  bxc3 {[%clk 0:02:39]} 9. bxc3 {[%clk 0:02:55]}  Bb7 {[%clk 0:02:35]} 10. c4 {[%clk 0:02:54]}  Nc6 {[%clk 0:02:22]} 11. Nc3 {[%clk 0:02:48]}  Na5 {[%clk 0:02:05]} 12. cxd5 {[%clk 0:02:37]}  Nxd5 {[%clk 0:02:06]} 13. Ne4 {[%clk 0:02:35]}  Nb4 {[%clk 0:01:51]} 14. Ba3 {[%clk 0:02:22]}  Bd5 {[%clk 0:01:48]} 15. Rc1 {[%clk 0:02:17]}  Nac6 {[%clk 0:01:38]} 16. Nxc6 {[%clk 0:02:08]}  Nxc6 {[%clk 0:01:38]} 17. Bxe7 {[%clk 0:02:05]}  Nxe7 {[%clk 0:01:37]} 18. Qc2 {[%clk 0:02:03]}  c6 {[%clk 0:01:35]} 19. Ng5 {[%clk 0:01:58]}  Nf5 {[%clk 0:01:21]} 20. Bxd5 {[%clk 0:01:33]}  cxd5 {[%clk 0:01:10]} 21. Nf3 {[%clk 0:01:34]}  h5 {[%clk 0:00:59]} 22. Qc5 {[%clk 0:01:31]}  Qd7 {[%clk 0:00:57]} 23. Qa5 {[%clk 0:01:31]}  Nd6 {[%clk 0:00:40]} 24. Ne5 {[%clk 0:01:30]}  Qd8 {[%clk 0:00:37]} 25. Rc7 {[%clk 0:01:26]}  Nc4 {[%clk 0:00:35]} 26. Nxc4 {[%clk 0:01:25]}  dxc4 {[%clk 0:00:35]} 27. Qc5 {[%clk 0:01:26]}  Rc8 {[%clk 0:00:30]} 28. Rxc8 {[%clk 0:01:16]}  Qxc8 {[%clk 0:00:31]} 29. Qxa7 {[%clk 0:01:16]}  Qc6 {[%clk 0:00:27]} 30. Rc1 {[%clk 0:01:13]}  Ra8 {[%clk 0:00:26]} 31. Qc5 {[%clk 0:01:12]}  Qxa4 {[%clk 0:00:18]} 32. Qxc4 {[%clk 0:01:09]}  Qxc4 {[%clk 0:00:17]} 33. Rxc4 {[%clk 0:01:10]}  g6 {[%clk 0:00:18]} 34. Kg2 {[%clk 0:01:09]}  Ra1 {[%clk 0:00:18]} 35. h4 {[%clk 0:01:09]}  Rd1 {[%clk 0:00:18]} 36. Kf3 {[%clk 0:01:09]}  Kg7 {[%clk 0:00:19]} 37. Ke3 {[%clk 0:01:09]}  Kf6 {[%clk 0:00:19]} 38. f3 {[%clk 0:01:09]}  Ra1 {[%clk 0:00:19]} 39. Kf4 {[%clk 0:01:09]}  Ra5 {[%clk 0:00:17]} 40. Rc5 {[%clk 0:01:07]}  Ra4 {[%clk 0:00:18]} 41. e3 {[%clk 0:01:07]}  Rb4 {[%clk 0:00:18]} 42. g4 {[%clk 0:01:07]}  hxg4 {[%clk 0:00:18]} 43. fxg4 {[%clk 0:01:08]}  Rb1 {[%clk 0:00:18]} 44. e4 {[%clk 0:00:48]}  Rf1+ {[%clk 0:00:15]} 45. Ke3 {[%clk 0:00:48]}  Rh1 {[%clk 0:00:14]} 46. h5 {[%clk 0:00:47]}  gxh5 {[%clk 0:00:14]} 47. gxh5 {[%clk 0:00:48]}  Rh3+ {[%clk 0:00:13]} 48. Kf4 {[%clk 0:00:48]}  Rh4+ {[%clk 0:00:13]} 49. Kf3 {[%clk 0:00:47]}  Rh1 {[%clk 0:00:13]} 50. Ra5 {[%clk 0:00:43]}  Rf1+ {[%clk 0:00:12]} 51. Ke2 {[%clk 0:00:42]}  Rh1 {[%clk 0:00:11]} 52. Kf2 {[%clk 0:00:33]}  Rh2+ {[%clk 0:00:11]} 53. Kg3 {[%clk 0:00:33]}  Rh1 {[%clk 0:00:12]} 54. Rc5 {[%clk 0:00:33]}  Rg1+ {[%clk 0:00:12]} 55. Kf4 {[%clk 0:00:33]}  Rf1+ {[%clk 0:00:12]} 56. Kg4 {[%clk 0:00:34]}  Rg1+ {[%clk 0:00:13]} 57. Kf3 {[%clk 0:00:34]}  Rf1+ {[%clk 0:00:13]} 58. Kg2 {[%clk 0:00:35]}  Rd1 {[%clk 0:00:13]} 59. d5 {[%clk 0:00:34]}  exd5 {[%clk 0:00:06]} 60. Rxd5 {[%clk 0:00:32]}  Re1 {[%clk 0:00:06]} 61. Kf3 {[%clk 0:00:33]}  Rh1 {[%clk 0:00:06]} 62. Rf5+ {[%clk 0:00:32]}  Ke6 {[%clk 0:00:06]} 63. Kf4 {[%clk 0:00:30]}  f6 {[%clk 0:00:07]} 64. Ke3 {[%clk 0:00:29]}  Rh3+ {[%clk 0:00:06]} 65. Kd4 {[%clk 0:00:30]}  Rh1 {[%clk 0:00:06]} 66. Ra5 {[%clk 0:00:26]}  Rd1+ {[%clk 0:00:05]} 67. Ke3 {[%clk 0:00:26]}  Re1+ {[%clk 0:00:05]} 68. Kf3 {[%clk 0:00:27]}  Rf1+ {[%clk 0:00:05]} 69. Ke2 {[%clk 0:00:27]}  Rh1 {[%clk 0:00:06]} 70. Kf2 {[%clk 0:00:24]}  Rh2+ {[%clk 0:00:05]} 71. Kg3 {[%clk 0:00:24]}  Rh1 {[%clk 0:00:06]} 72. Kf3 {[%clk 0:00:22]}  Rf1+ {[%clk 0:00:05]} 73. Ke2 {[%clk 0:00:23]}  Rh1 {[%clk 0:00:05]} 74. Ke3 {[%clk 0:00:23]}  Ke7 {[%clk 0:00:04]} 75. Ra7+ {[%clk 0:00:20]}  Ke6 {[%clk 0:00:04]} 76. Rh7 {[%clk 0:00:21]}  Ke5 {[%clk 0:00:03]} 77. Re7+ {[%clk 0:00:15]}  Kd6 {[%clk 0:00:04]} 78. Rh7 {[%clk 0:00:15]}  Ke5 {[%clk 0:00:04]} 79. Kf3 {[%clk 0:00:15]}  Rf1+ {[%clk 0:00:04]} 80. Kg2 {[%clk 0:00:15]}  Rb1 {[%clk 0:00:03]} 81. Re7+ {[%clk 0:00:15]}  Kf4 {[%clk 0:00:03]} 82. h6 {[%clk 0:00:16]}  Rb2+ {[%clk 0:00:04]} 83. Kf1 {[%clk 0:00:16]}  Kf3 {[%clk 0:00:04]} 84. Ke1 {[%clk 0:00:16]}  Rh2 {[%clk 0:00:04]} 85. h7 {[%clk 0:00:16]}  Ke3 {[%clk 0:00:03]} 86. Kf1 {[%clk 0:00:16]}  Kf3 {[%clk 0:00:03]} 87. Kg1 {[%clk 0:00:17]}  Rh6 {[%clk 0:00:04]} 88. Rg7 {[%clk 0:00:09]}  Kxe4 {[%clk 0:00:04]} 89. Kg2 {[%clk 0:00:10]}  Kf5 {[%clk 0:00:04]} 90. Kg3 {[%clk 0:00:10]}  Rh1 {[%clk 0:00:04]} 91. Kf3 {[%clk 0:00:10]}  Rh2 {[%clk 0:00:03]} 92. Ke3 {[%clk 0:00:11]}  Ke5 {[%clk 0:00:03]} 93. Kd3 {[%clk 0:00:10]}  f5 {[%clk 0:00:04]} 94. Ke3 {[%clk 0:00:11]}  Rh3+ {[%clk 0:00:04]} 95. Kf2 {[%clk 0:00:11]}  Kf4 {[%clk 0:00:03]} 96. Kg2 {[%clk 0:00:12]}  Rh6 {[%clk 0:00:04]} 97. Kf2 {[%clk 0:00:11]}  Ke5 {[%clk 0:00:04]} 98. Kg3 {[%clk 0:00:11]}  Kf6 {[%clk 0:00:04]} 99. Ra7 {[%clk 0:00:12]}  Kg6 {[%clk 0:00:05]} 100. Kf4 {[%clk 0:00:11]}  Rxh7 {[%clk 0:00:05]} 101. Ra6+ {[%clk 0:00:12]}  Kg7 {[%clk 0:00:05]} 102. Kxf5 {[%clk 0:00:13]}  Rh5+ {[%clk 0:00:06]} 103. Kg4 {[%clk 0:00:13]}  Rh6 {[%clk 0:00:06]} 104. Rxh6 {[%clk 0:00:13]}  Kxh6 {[%clk 0:00:07]} 1/2-1/2


[Site "https://www.chess.com"]

[Event "Titled Tuesday Blitz July 11 Late 2023"]
[White "FoxOnTheRun97"]
[Black "Kravtsiv, Martyn"]
[BlackFideId "14113147"]
[WhiteElo "2529"]
[BlackElo "2816"]
[Result "0-1"]
[Round "2"]
[TimeControl "180+2"]
[Date "2023.07.11"]
[WhiteClock "0:00:11"]
[BlackClock "0:01:19"]
[Board "41"]

1. d4 {[%clk 0:03:00]}  d5 {[%clk 0:02:59]} 2. g3 {[%clk 0:02:59]}  e6 {[%clk 0:02:58]} 3. Bg2 {[%clk 0:02:59]}  Nf6 {[%clk 0:02:58]} 4. Nf3 {[%clk 0:02:57]}  c5 {[%clk 0:02:57]} 5. dxc5 {[%clk 0:02:51]}  Bxc5 {[%clk 0:02:55]} 6. O-O {[%clk 0:02:52]}  O-O {[%clk 0:02:54]} 7. a3 {[%clk 0:02:47]}  a5 {[%clk 0:02:47]} 8. Nbd2 {[%clk 0:02:39]}  Nc6 {[%clk 0:02:44]} 9. c4 {[%clk 0:02:35]}  d4 {[%clk 0:02:38]} 10. Qc2 {[%clk 0:02:27]}  e5 {[%clk 0:02:36]} 11. Rd1 {[%clk 0:02:15]}  h6 {[%clk 0:02:35]} 12. Ne4 {[%clk 0:02:05]}  Nxe4 {[%clk 0:02:27]} 13. Qxe4 {[%clk 0:02:06]}  Qe7 {[%clk 0:02:26]} 14. Qh4 {[%clk 0:01:37]}  Be6 {[%clk 0:02:22]} 15. Qxe7 {[%clk 0:01:23]}  Bxe7 {[%clk 0:02:23]} 16. e3 {[%clk 0:01:22]}  dxe3 {[%clk 0:02:15]} 17. Bxe3 {[%clk 0:01:22]}  Bxc4 {[%clk 0:02:15]} 18. Rac1 {[%clk 0:01:18]}  Be6 {[%clk 0:02:14]} 19. Bc5 {[%clk 0:01:00]}  Bxc5 {[%clk 0:02:11]} 20. Rxc5 {[%clk 0:01:01]}  Rfd8 {[%clk 0:02:10]} 21. Rcc1 {[%clk 0:00:52]}  Bb3 {[%clk 0:02:04]} 22. Re1 {[%clk 0:00:50]}  f6 {[%clk 0:02:02]} 23. Rc3 {[%clk 0:00:44]}  Bd5 {[%clk 0:01:59]} 24. Rec1 {[%clk 0:00:44]}  e4 {[%clk 0:01:48]} 25. Nh4 {[%clk 0:00:39]}  Nd4 {[%clk 0:01:47]} 26. Re1 {[%clk 0:00:36]}  g5 {[%clk 0:01:37]} 27. Ng6 {[%clk 0:00:33]}  Kf7 {[%clk 0:01:36]} 28. Rc7+ {[%clk 0:00:15]}  Kxg6 {[%clk 0:01:36]} 29. g4 {[%clk 0:00:15]}  Rac8 {[%clk 0:01:31]} 30. Re7 {[%clk 0:00:14]}  Nf3+ {[%clk 0:01:27]} 31. Bxf3 {[%clk 0:00:13]}  exf3 {[%clk 0:01:27]} 32. h4 {[%clk 0:00:12]}  gxh4 {[%clk 0:01:26]} 33. Kh2 {[%clk 0:00:13]}  Bc6 {[%clk 0:01:22]} 34. Kh3 {[%clk 0:00:12]}  Re8 {[%clk 0:01:22]} 35. Kxh4 {[%clk 0:00:12]}  Rxe7 {[%clk 0:01:21]} 36. Rxe7 {[%clk 0:00:12]}  Re8 {[%clk 0:01:19]} 37. Rc7 {[%clk 0:00:11]} 0-1


[Site "https://www.chess.com"]

[Event "Titled Tuesday Blitz July 11 Late 2023"]
[White "Talibov, Shiroghlan"]
[Black "Michalczak, Thomas"]
[WhiteFideId "13429078"]
[BlackFideId "4622634"]
[WhiteElo "2813"]
[BlackElo "2529"]
[Result "1-0"]
[Round "2"]
[TimeControl "180+2"]
[Date "2023.07.11"]
[WhiteClock "0:01:19"]
[BlackClock "0:00:08"]
[Board "42"]

1. g3 {[%clk 0:03:00]}  e5 {[%clk 0:02:58]} 2. c4 {[%clk 0:02:59]}  Nf6 {[%clk 0:02:57]} 3. Bg2 {[%clk 0:02:58]}  c6 {[%clk 0:02:57]} 4. a3 {[%clk 0:02:57]}  d5 {[%clk 0:02:56]} 5. cxd5 {[%clk 0:02:58]}  cxd5 {[%clk 0:02:56]} 6. d4 {[%clk 0:02:58]}  e4 {[%clk 0:02:56]} 7. Nc3 {[%clk 0:02:58]}  Nc6 {[%clk 0:02:47]} 8. Nh3 {[%clk 0:02:57]}  h6 {[%clk 0:02:46]} 9. Nf4 {[%clk 0:02:49]}  g5 {[%clk 0:02:43]} 10. Nh3 {[%clk 0:02:48]}  Bg7 {[%clk 0:02:40]} 11. O-O {[%clk 0:02:47]}  O-O {[%clk 0:02:40]} 12. f3 {[%clk 0:02:44]}  exf3 {[%clk 0:02:39]} 13. exf3 {[%clk 0:02:45]}  Nh7 {[%clk 0:02:23]} 14. Be3 {[%clk 0:02:43]}  Re8 {[%clk 0:02:23]} 15. Bf2 {[%clk 0:02:40]}  Be6 {[%clk 0:02:19]} 16. Kh1 {[%clk 0:02:40]}  Qb6 {[%clk 0:02:15]} 17. Na4 {[%clk 0:02:39]}  Qa5 {[%clk 0:02:13]} 18. b4 {[%clk 0:02:38]}  Qd8 {[%clk 0:02:12]} 19. Ng1 {[%clk 0:02:33]}  b6 {[%clk 0:02:10]} 20. Rc1 {[%clk 0:02:31]}  Rc8 {[%clk 0:02:09]} 21. f4 {[%clk 0:02:27]}  gxf4 {[%clk 0:01:58]} 22. gxf4 {[%clk 0:02:28]}  Nf6 {[%clk 0:01:57]} 23. f5 {[%clk 0:02:15]}  Bxf5 {[%clk 0:01:50]} 24. Bh4 {[%clk 0:02:15]}  Be4 {[%clk 0:01:50]} 25. b5 {[%clk 0:02:09]}  Bxg2+ {[%clk 0:01:42]} 26. Kxg2 {[%clk 0:02:10]}  Na5 {[%clk 0:00:41]} 27. Rxc8 {[%clk 0:01:58]}  Qxc8 {[%clk 0:00:41]} 28. Bxf6 {[%clk 0:01:58]}  Nc4 {[%clk 0:00:35]} 29. Qf3 {[%clk 0:01:23]}  Ne3+ {[%clk 0:00:33]} 30. Kh1 {[%clk 0:01:22]}  Nxf1 {[%clk 0:00:08]} 31. Qg2 {[%clk 0:01:19]} 1-0


[Site "https://www.chess.com"]

[Event "Titled Tuesday Blitz July 11 Late 2023"]
[White "Troff, Kayden"]
[Black "Ismagilov, Damir"]
[WhiteFideId "2047896"]
[BlackFideId "34199982"]
[WhiteElo "2807"]
[BlackElo "2529"]
[Result "1-0"]
[Round "2"]
[TimeControl "180+2"]
[Date "2023.07.11"]
[WhiteClock "0:00:18"]
[BlackClock "0:00:22"]
[Board "43"]

1. e4 {[%clk 0:03:00]}  c5 {[%clk 0:02:59]} 2. Nc3 {[%clk 0:03:00]}  e5 {[%clk 0:02:54]} 3. Bc4 {[%clk 0:02:48]}  d6 {[%clk 0:02:49]} 4. d3 {[%clk 0:02:46]}  Be7 {[%clk 0:02:44]} 5. Nge2 {[%clk 0:02:44]}  Nf6 {[%clk 0:02:43]} 6. O-O {[%clk 0:02:43]}  Nc6 {[%clk 0:02:43]} 7. a4 {[%clk 0:02:40]}  O-O {[%clk 0:02:42]} 8. f4 {[%clk 0:02:38]}  exf4 {[%clk 0:02:43]} 9. Nxf4 {[%clk 0:02:35]}  Ne5 {[%clk 0:02:43]} 10. Ba2 {[%clk 0:02:31]}  Bd7 {[%clk 0:02:43]} 11. Nfd5 {[%clk 0:02:28]}  Nxd5 {[%clk 0:02:40]} 12. Bxd5 {[%clk 0:02:18]}  Rb8 {[%clk 0:02:33]} 13. Bf4 {[%clk 0:02:14]}  Bg5 {[%clk 0:02:25]} 14. Qd2 {[%clk 0:02:01]}  Bxf4 {[%clk 0:02:20]} 15. Qxf4 {[%clk 0:02:01]}  Be6 {[%clk 0:02:20]} 16. Rf2 {[%clk 0:01:57]}  Qe7 {[%clk 0:02:20]} 17. Raf1 {[%clk 0:01:57]}  a6 {[%clk 0:02:18]} 18. a5 {[%clk 0:01:53]}  h6 {[%clk 0:02:14]} 19. h3 {[%clk 0:01:51]}  Ng6 {[%clk 0:02:12]} 20. Qg3 {[%clk 0:01:48]}  Ne5 {[%clk 0:02:11]} 21. Kh2 {[%clk 0:01:46]}  Qc7 {[%clk 0:02:09]} 22. Rf6 {[%clk 0:01:32]}  Kh7 {[%clk 0:01:49]} 23. Bxe6 {[%clk 0:01:23]}  gxf6 {[%clk 0:01:49]} 24. Nd5 {[%clk 0:01:16]}  Qd8 {[%clk 0:01:23]} 25. Nxf6+ {[%clk 0:01:03]}  Kh8 {[%clk 0:01:23]} 26. Bd5 {[%clk 0:01:01]}  Qe7 {[%clk 0:01:12]} 27. Qh4 {[%clk 0:00:56]}  Ng4+ {[%clk 0:01:00]} 28. hxg4 {[%clk 0:00:51]}  Qe5+ {[%clk 0:01:01]} 29. g3 {[%clk 0:00:42]}  Kg7 {[%clk 0:00:51]} 30. Rf5 {[%clk 0:00:39]}  Qxb2 {[%clk 0:00:49]} 31. Kh3 {[%clk 0:00:25]}  Qa1 {[%clk 0:00:44]} 32. Kg2 {[%clk 0:00:22]}  Qb2 {[%clk 0:00:41]} 33. Rf2 {[%clk 0:00:20]}  Rbd8 {[%clk 0:00:35]} 34. g5 {[%clk 0:00:20]}  Rh8 {[%clk 0:00:31]} 35. Nh5+ {[%clk 0:00:19]}  Kf8 {[%clk 0:00:25]} 36. Rxf7+ {[%clk 0:00:19]}  Ke8 {[%clk 0:00:22]} 37. Nf6+ {[%clk 0:00:18]} 1-0


[Site "https://www.chess.com"]